[Event "Titled Tuesday Blitz July 18 Early 2023"]
[White "Ishowmoves57"]
[Black "Dwilewicz, Katarzyna"]
[BlackFideId "1148486"]
[WhiteElo "2137"]
[BlackElo "2323"]
[Result "0-1"]
[Round "9"]
[TimeControl "180+2"]
[Date "2023.07.18"]
[WhiteClock "0:00:02"]
[BlackClock "0:00:06"]
[Board "142"]

1. e4 {[%clk 0:02:57]}  c5 {[%clk 0:02:58]} 2. Nf3 {[%clk 0:02:58]}  d6 {[%clk 0:02:59]} 3. b3 {[%clk 0:02:56]}  Nc6 {[%clk 0:02:57]} 4. Bb2 {[%clk 0:02:54]}  Nf6 {[%clk 0:02:56]} 5. e5 {[%clk 0:02:46]}  dxe5 {[%clk 0:02:56]} 6. Nxe5 {[%clk 0:02:45]}  Nxe5 {[%clk 0:02:50]} 7. Bxe5 {[%clk 0:02:46]}  Qd5 {[%clk 0:02:49]} 8. Bb5+ {[%clk 0:02:40]}  Nd7 {[%clk 0:02:43]} 9. Bb2 {[%clk 0:02:34]}  Qxg2 {[%clk 0:02:40]} 10. Rf1 {[%clk 0:02:19]}  a6 {[%clk 0:02:32]} 11. Be2 {[%clk 0:02:14]}  Qxh2 {[%clk 0:02:31]} 12. Nc3 {[%clk 0:02:11]}  Nf6 {[%clk 0:02:28]} 13. Na4 {[%clk 0:02:08]}  Bh3 {[%clk 0:02:25]} 14. Nb6 {[%clk 0:01:50]}  Rd8 {[%clk 0:02:23]} 15. Bf3 {[%clk 0:01:25]}  Bxf1 {[%clk 0:02:18]} 16. Kxf1 {[%clk 0:01:25]}  e6 {[%clk 0:02:02]} 17. Qe2 {[%clk 0:01:05]}  Be7 {[%clk 0:01:55]} 18. Be5 {[%clk 0:00:56]}  Qh3+ {[%clk 0:01:51]} 19. Bg2 {[%clk 0:00:54]}  Qh5 {[%clk 0:01:49]} 20. Qxh5 {[%clk 0:00:29]}  Nxh5 {[%clk 0:01:49]} 21. Bxb7 {[%clk 0:00:29]}  f6 {[%clk 0:01:46]} 22. Bh2 {[%clk 0:00:20]}  Kf7 {[%clk 0:01:35]} 23. Bxa6 {[%clk 0:00:18]}  Bd6 {[%clk 0:01:35]} 24. Bxd6 {[%clk 0:00:15]}  Rxd6 {[%clk 0:01:35]} 25. Be2 {[%clk 0:00:10]}  Rxb6 {[%clk 0:01:13]} 26. Bxh5+ {[%clk 0:00:10]}  g6 {[%clk 0:01:14]} 27. Be2 {[%clk 0:00:10]}  h5 {[%clk 0:01:10]} 28. a4 {[%clk 0:00:10]}  g5 {[%clk 0:01:02]} 29. a5 {[%clk 0:00:10]}  Rb7 {[%clk 0:01:02]} 30. a6 {[%clk 0:00:10]}  Ra7 {[%clk 0:01:03]} 31. Bc4 {[%clk 0:00:09]}  Rd8 {[%clk 0:00:58]} 32. Re1 {[%clk 0:00:09]}  Rd6 {[%clk 0:00:56]} 33. Kg2 {[%clk 0:00:07]}  Re7 {[%clk 0:00:46]} 34. d3 {[%clk 0:00:06]}  Kg6 {[%clk 0:00:32]} 35. Ra1 {[%clk 0:00:06]}  Ra7 {[%clk 0:00:32]} 36. Re1 {[%clk 0:00:06]}  e5 {[%clk 0:00:29]} 37. Ra1 {[%clk 0:00:06]}  f5 {[%clk 0:00:27]} 38. Ra5 {[%clk 0:00:07]}  Rc6 {[%clk 0:00:27]} 39. Bd5 {[%clk 0:00:06]}  Raxa6 {[%clk 0:00:23]} 40. Rb5 {[%clk 0:00:05]}  Rc7 {[%clk 0:00:22]} 41. Bc4 {[%clk 0:00:04]}  Rf6 {[%clk 0:00:18]} 42. Rb8 {[%clk 0:00:05]}  g4 {[%clk 0:00:17]} 43. Rg8+ {[%clk 0:00:05]}  Rg7 {[%clk 0:00:17]} 44. Rc8 {[%clk 0:00:04]}  f4 {[%clk 0:00:15]} 45. Rxc5 {[%clk 0:00:04]}  Re7 {[%clk 0:00:15]} 46. Rc8 {[%clk 0:00:03]}  h4 {[%clk 0:00:15]} 47. Rg8+ {[%clk 0:00:04]}  Rg7 {[%clk 0:00:15]} 48. Rh8 {[%clk 0:00:05]}  Rh7 {[%clk 0:00:14]} 49. Rg8+ {[%clk 0:00:04]}  Rg7 {[%clk 0:00:14]} 50. Rh8 {[%clk 0:00:05]}  Kg5 {[%clk 0:00:14]} 51. Bd5 {[%clk 0:00:04]}  f3+ {[%clk 0:00:13]} 52. Kf1 {[%clk 0:00:04]}  Kf4 {[%clk 0:00:13]} 53. Be4 {[%clk 0:00:04]}  Kg5 {[%clk 0:00:09]} 54. Re8 {[%clk 0:00:01]}  Ra7 {[%clk 0:00:06]} 55. Rh8 {[%clk 0:00:02]}  Ra1# {[%clk 0:00:06]} 0-1


[Site "https://www.chess.com"]

[Event "Titled Tuesday Blitz July 18 Early 2023"]
[White "kiwibobo"]
[Black "Johnson, Ben"]
[BlackFideId "2010917"]
[WhiteElo "2308"]
[BlackElo "2120"]
[Result "1-0"]
[Round "9"]
[TimeControl "180+2"]
[Date "2023.07.18"]
[WhiteClock "0:00:40"]
[BlackClock "0:00:09"]
[Board "150"]

1. e4 {[%clk 0:02:59]}  c5 {[%clk 0:02:59]} 2. Nf3 {[%clk 0:02:59]}  g6 {[%clk 0:03:00]} 3. d4 {[%clk 0:02:59]}  cxd4 {[%clk 0:03:01]} 4. Nxd4 {[%clk 0:02:59]}  Nc6 {[%clk 0:02:59]} 5. Nc3 {[%clk 0:02:59]}  Bg7 {[%clk 0:02:58]} 6. Be3 {[%clk 0:03:00]}  Nf6 {[%clk 0:02:58]} 7. Nxc6 {[%clk 0:03:01]}  bxc6 {[%clk 0:02:56]} 8. e5 {[%clk 0:03:01]}  Nd5 {[%clk 0:02:43]} 9. Nxd5 {[%clk 0:03:01]}  cxd5 {[%clk 0:02:44]} 10. Qxd5 {[%clk 0:03:02]}  Rb8 {[%clk 0:02:45]} 11. O-O-O {[%clk 0:03:02]}  O-O {[%clk 0:02:43]} 12. Bxa7 {[%clk 0:02:37]}  Rb4 {[%clk 0:02:09]} 13. Bc5 {[%clk 0:02:10]}  Ra4 {[%clk 0:02:02]} 14. Bb5 {[%clk 0:01:42]}  Ra5 {[%clk 0:01:53]} 15. Bb4 {[%clk 0:01:42]}  Ra7 {[%clk 0:01:42]} 16. Qc5 {[%clk 0:01:40]}  Rb7 {[%clk 0:01:34]} 17. Ba6 {[%clk 0:01:28]}  Rb8 {[%clk 0:01:34]} 18. Ba5 {[%clk 0:01:23]}  Qe8 {[%clk 0:01:29]} 19. Bxc8 {[%clk 0:01:09]}  Qxc8 {[%clk 0:01:26]} 20. Qxc8 {[%clk 0:01:09]}  Rfxc8 {[%clk 0:01:26]} 21. Bc3 {[%clk 0:01:08]}  Bh6+ {[%clk 0:01:21]} 22. Bd2 {[%clk 0:01:07]}  Bg7 {[%clk 0:01:14]} 23. Bf4 {[%clk 0:00:59]}  g5 {[%clk 0:01:07]} 24. Bg3 {[%clk 0:00:55]}  h5 {[%clk 0:01:06]} 25. h4 {[%clk 0:00:55]}  Bh6 {[%clk 0:00:46]} 26. hxg5 {[%clk 0:00:51]}  Bxg5+ {[%clk 0:00:46]} 27. Kb1 {[%clk 0:00:52]}  Kg7 {[%clk 0:00:31]} 28. Rxh5 {[%clk 0:00:49]}  Kg6 {[%clk 0:00:31]} 29. Rdh1 {[%clk 0:00:44]}  Bd2 {[%clk 0:00:22]} 30. f4 {[%clk 0:00:41]}  e6 {[%clk 0:00:09]} 31. Rg5# {[%clk 0:00:40]} 1-0


[Site "https://www.chess.com"]

[Event "Titled Tuesday Blitz July 18 Early 2023"]
[White "Ziatdinov, Raset"]
[Black "Floresvillar Gonzalez, Luis Migu"]
[WhiteFideId "2015323"]
[BlackFideId "5100542"]
[WhiteElo "2290"]
[BlackElo "2079"]
[Result "1-0"]
[Round "9"]
[TimeControl "180+2"]
[Date "2023.07.18"]
[WhiteClock "0:01:04"]
[BlackClock "0:00:23"]
[Board "152"]

1. e4 {[%clk 0:02:57]}  d6 {[%clk 0:02:55]} 2. d4 {[%clk 0:02:57]}  Nf6 {[%clk 0:02:55]} 3. Nc3 {[%clk 0:02:56]}  g6 {[%clk 0:02:56]} 4. f3 {[%clk 0:02:55]}  c6 {[%clk 0:02:54]} 5. Be3 {[%clk 0:02:55]}  b5 {[%clk 0:02:54]} 6. Qd2 {[%clk 0:02:55]}  Bb7 {[%clk 0:02:50]} 7. g4 {[%clk 0:02:51]}  h5 {[%clk 0:02:48]} 8. g5 {[%clk 0:02:50]}  Nfd7 {[%clk 0:02:48]} 9. h4 {[%clk 0:02:36]}  Nb6 {[%clk 0:02:47]} 10. f4 {[%clk 0:02:32]}  Bg7 {[%clk 0:02:43]} 11. O-O-O {[%clk 0:02:28]}  Nc4 {[%clk 0:02:42]} 12. Bxc4 {[%clk 0:02:28]}  bxc4 {[%clk 0:02:42]} 13. f5 {[%clk 0:02:23]}  Nd7 {[%clk 0:02:37]} 14. Nh3 {[%clk 0:02:13]}  Qa5 {[%clk 0:02:25]} 15. Kb1 {[%clk 0:02:12]}  gxf5 {[%clk 0:02:24]} 16. exf5 {[%clk 0:02:10]}  Qxf5 {[%clk 0:02:23]} 17. Nf4 {[%clk 0:01:59]}  e5 {[%clk 0:02:17]} 18. Nfe2 {[%clk 0:01:50]}  d5 {[%clk 0:02:09]} 19. Rhf1 {[%clk 0:01:49]}  Qe6 {[%clk 0:02:09]} 20. dxe5 {[%clk 0:01:48]}  Nxe5 {[%clk 0:02:04]} 21. Nd4 {[%clk 0:01:46]}  Qg4 {[%clk 0:01:41]} 22. Nf5 {[%clk 0:01:36]}  Bf8 {[%clk 0:01:38]} 23. Bd4 {[%clk 0:01:24]}  Nf3 {[%clk 0:01:28]} 24. Qe2+ {[%clk 0:01:23]}  Kd7 {[%clk 0:01:19]} 25. Bxh8 {[%clk 0:01:21]}  Re8 {[%clk 0:01:14]} 26. Qxf3 {[%clk 0:01:20]}  Qxf3 {[%clk 0:01:11]} 27. Rxf3 {[%clk 0:01:21]}  Bb4 {[%clk 0:00:55]} 28. Bg7 {[%clk 0:01:10]}  a5 {[%clk 0:00:50]} 29. a3 {[%clk 0:01:10]}  Bc5 {[%clk 0:00:45]} 30. Rff1 {[%clk 0:01:08]}  d4 {[%clk 0:00:44]} 31. Na4 {[%clk 0:01:06]}  Bxa3 {[%clk 0:00:33]} 32. bxa3 {[%clk 0:01:05]}  d3 {[%clk 0:00:31]} 33. Nc5+ {[%clk 0:01:04]}  Kc7 {[%clk 0:00:30]} 34. Nxb7 {[%clk 0:01:04]}  dxc2+ {[%clk 0:00:26]} 35. Kxc2 {[%clk 0:01:04]}  Kxb7 {[%clk 0:00:23]} 36. Nd6+ {[%clk 0:01:04]} 1-0


[Site "https://www.chess.com"]

[Event "Titled Tuesday Blitz July 18 Early 2023"]
[White "Wang, Alexander J"]
[Black "Nan M K Khine Hlyan"]
[WhiteFideId "30955270"]
[BlackFideId "13002899"]
[WhiteElo "2287"]
[BlackElo "1762"]
[Result "1-0"]
[Round "9"]
[TimeControl "180+2"]
[Date "2023.07.18"]
[WhiteClock "0:00:33"]
[BlackClock "0:01:07"]
[Board "153"]

1. e4 {[%clk 0:02:59]}  e5 {[%clk 0:02:58]} 2. Nf3 {[%clk 0:02:58]}  Nc6 {[%clk 0:02:58]} 3. Bb5 {[%clk 0:02:58]}  Bc5 {[%clk 0:02:57]} 4. O-O {[%clk 0:02:53]}  Nf6 {[%clk 0:02:51]} 5. Nc3 {[%clk 0:02:45]}  O-O {[%clk 0:02:50]} 6. d3 {[%clk 0:02:36]}  h6 {[%clk 0:02:48]} 7. h3 {[%clk 0:02:27]}  a6 {[%clk 0:02:47]} 8. Bxc6 {[%clk 0:02:25]}  dxc6 {[%clk 0:02:46]} 9. Nxe5 {[%clk 0:02:24]}  Bd4 {[%clk 0:02:43]} 10. Nf3 {[%clk 0:02:23]}  Bxc3 {[%clk 0:02:43]} 11. bxc3 {[%clk 0:02:23]}  Nh7 {[%clk 0:02:40]} 12. Ba3 {[%clk 0:02:18]}  Re8 {[%clk 0:02:39]} 13. Nd4 {[%clk 0:02:09]}  Qf6 {[%clk 0:02:26]} 14. Qf3 {[%clk 0:02:01]}  Qg6 {[%clk 0:02:24]} 15. Nf5 {[%clk 0:01:57]}  Ng5 {[%clk 0:02:16]} 16. Qg4 {[%clk 0:01:23]}  Bxf5 {[%clk 0:02:10]} 17. exf5 {[%clk 0:01:18]}  Qf6 {[%clk 0:02:10]} 18. h4 {[%clk 0:01:16]}  Nh7 {[%clk 0:02:08]} 19. Bb2 {[%clk 0:01:05]}  Re5 {[%clk 0:02:00]} 20. c4 {[%clk 0:00:57]}  Qxf5 {[%clk 0:02:00]} 21. Qg3 {[%clk 0:00:56]}  f6 {[%clk 0:01:52]} 22. Bxe5 {[%clk 0:00:54]}  fxe5 {[%clk 0:01:49]} 23. Rab1 {[%clk 0:00:54]}  b6 {[%clk 0:01:48]} 24. Rbe1 {[%clk 0:00:55]}  Re8 {[%clk 0:01:47]} 25. d4 {[%clk 0:00:54]}  e4 {[%clk 0:01:45]} 26. Qxc7 {[%clk 0:00:52]}  Nf6 {[%clk 0:01:44]} 27. Qxc6 {[%clk 0:00:51]}  Qg4 {[%clk 0:01:36]} 28. Re3 {[%clk 0:00:42]}  Kh7 {[%clk 0:01:33]} 29. Rg3 {[%clk 0:00:39]}  Qxh4 {[%clk 0:01:31]} 30. Re1 {[%clk 0:00:36]}  Nh5 {[%clk 0:01:25]} 31. Qxe8 {[%clk 0:00:34]}  Nxg3 {[%clk 0:01:24]} 32. fxg3 {[%clk 0:00:34]}  Qxg3 {[%clk 0:01:23]} 33. Qxe4+ {[%clk 0:00:34]}  Kg8 {[%clk 0:01:19]} 34. Rf1 {[%clk 0:00:33]}  Qb8 {[%clk 0:01:16]} 35. Qd5+ {[%clk 0:00:33]}  Kh7 {[%clk 0:01:15]} 36. Qf5+ {[%clk 0:00:33]}  Kg8 {[%clk 0:01:13]} 37. Qf7+ {[%clk 0:00:33]}  Kh7 {[%clk 0:01:14]} 38. d5 {[%clk 0:00:32]}  Qe5 {[%clk 0:01:11]} 39. Qf5+ {[%clk 0:00:32]}  Qxf5 {[%clk 0:01:07]} 40. Rxf5 {[%clk 0:00:33]} 1-0


[Site "https://www.chess.com"]

[Event "Titled Tuesday Blitz July 18 Early 2023"]
[White "Kiseljova, Marya"]
[Black "Cardozo Munar, Carlos Eduardo"]
[WhiteFideId "4155009"]
[BlackFideId "4409477"]
[WhiteElo "2139"]
[BlackElo "2255"]
[Result "0-1"]
[Round "9"]
[TimeControl "180+2"]
[Date "2023.07.18"]
[WhiteClock "0:00:09"]
[BlackClock "0:00:15"]
[Board "155"]

1. d4 {[%clk 0:03:00]}  d5 {[%clk 0:02:26]} 2. c4 {[%clk 0:03:00]}  e5 {[%clk 0:02:26]} 3. dxe5 {[%clk 0:02:59]}  d4 {[%clk 0:02:26]} 4. Nf3 {[%clk 0:02:59]}  Nc6 {[%clk 0:02:26]} 5. Nbd2 {[%clk 0:02:57]}  Bg4 {[%clk 0:02:21]} 6. h3 {[%clk 0:02:44]}  Bh5 {[%clk 0:02:20]} 7. g4 {[%clk 0:02:43]}  Bg6 {[%clk 0:02:21]} 8. Nb3 {[%clk 0:02:43]}  Bb4+ {[%clk 0:02:21]} 9. Bd2 {[%clk 0:02:42]}  Qe7 {[%clk 0:02:14]} 10. a3 {[%clk 0:02:26]}  Bxd2+ {[%clk 0:02:10]} 11. Qxd2 {[%clk 0:02:25]}  O-O-O {[%clk 0:02:10]} 12. Bg2 {[%clk 0:01:54]}  Nxe5 {[%clk 0:02:02]} 13. O-O {[%clk 0:01:49]}  h5 {[%clk 0:01:58]} 14. g5 {[%clk 0:01:47]}  f6 {[%clk 0:01:56]} 15. gxf6 {[%clk 0:01:30]}  Nxf6 {[%clk 0:01:55]} 16. Qg5 {[%clk 0:01:22]}  Nxf3+ {[%clk 0:01:34]} 17. Bxf3 {[%clk 0:01:23]}  Bc2 {[%clk 0:01:34]} 18. Na5 {[%clk 0:01:13]}  c6 {[%clk 0:01:34]} 19. Rac1 {[%clk 0:01:01]}  Be4 {[%clk 0:01:33]} 20. b4 {[%clk 0:00:43]}  d3 {[%clk 0:01:17]} 21. exd3 {[%clk 0:00:35]}  Bxf3 {[%clk 0:01:10]} 22. Qf5+ {[%clk 0:00:35]}  Qd7 {[%clk 0:01:07]} 23. Qxf3 {[%clk 0:00:35]}  Qxd3 {[%clk 0:01:07]} 24. Qg2 {[%clk 0:00:32]}  Qe4 {[%clk 0:00:52]} 25. Qg3 {[%clk 0:00:28]}  h4 {[%clk 0:00:49]} 26. Qg5 {[%clk 0:00:27]}  Rh5 {[%clk 0:00:47]} 27. Qe3 {[%clk 0:00:22]}  Rd3 {[%clk 0:00:16]} 28. Qxe4 {[%clk 0:00:20]}  Nxe4 {[%clk 0:00:17]} 29. Kh2 {[%clk 0:00:19]}  Rf5 {[%clk 0:00:16]} 30. f4 {[%clk 0:00:17]}  Rxa3 {[%clk 0:00:13]} 31. Rce1 {[%clk 0:00:16]}  Nd2 {[%clk 0:00:12]} 32. Re8+ {[%clk 0:00:14]}  Kd7 {[%clk 0:00:13]} 33. Rg8 {[%clk 0:00:11]}  Nxf1+ {[%clk 0:00:13]} 34. Kh1 {[%clk 0:00:09]}  Rxf4 {[%clk 0:00:12]} 35. Rxg7+ {[%clk 0:00:10]}  Ke6 {[%clk 0:00:13]} 36. Nxb7 {[%clk 0:00:09]}  Ng3+ {[%clk 0:00:13]} 37. Kg2 {[%clk 0:00:09]}  Ra2+ {[%clk 0:00:14]} 38. Kg1 {[%clk 0:00:09]}  Rf1# {[%clk 0:00:15]} 0-1


[Site "https://www.chess.com"]

[Event "Titled Tuesday Blitz July 18 Early 2023"]
[White "Clawitter, Craig"]
[Black "Lohani, Sujana"]
[WhiteFideId "2023105"]
[BlackFideId "12311987"]
[WhiteElo "2265"]
[BlackElo "1937"]
[Result "1-0"]
[Round "9"]
[TimeControl "180+2"]
[Date "2023.07.18"]
[WhiteClock "0:00:20"]
[BlackClock "0:00:00"]
[Board "157"]

1. e4 {[%clk 0:03:00]}  c5 {[%clk 0:02:01]} 2. Nf3 {[%clk 0:03:00]}  Nc6 {[%clk 0:02:00]} 3. d4 {[%clk 0:03:01]}  cxd4 {[%clk 0:02:00]} 4. Nxd4 {[%clk 0:03:01]}  g6 {[%clk 0:01:57]} 5. Nc3 {[%clk 0:03:01]}  Bg7 {[%clk 0:01:56]} 6. Be3 {[%clk 0:03:01]}  Nf6 {[%clk 0:01:53]} 7. Bc4 {[%clk 0:03:02]}  O-O {[%clk 0:01:50]} 8. Bb3 {[%clk 0:03:01]}  d6 {[%clk 0:01:44]} 9. f3 {[%clk 0:02:58]}  Bd7 {[%clk 0:01:34]} 10. Qd2 {[%clk 0:02:58]}  Nxd4 {[%clk 0:01:31]} 11. Bxd4 {[%clk 0:02:58]}  a6 {[%clk 0:01:26]} 12. O-O-O {[%clk 0:02:57]}  b5 {[%clk 0:01:25]} 13. h4 {[%clk 0:02:55]}  h5 {[%clk 0:01:16]} 14. Nd5 {[%clk 0:02:52]}  Nxd5 {[%clk 0:01:07]} 15. Bxg7 {[%clk 0:02:42]}  Kxg7 {[%clk 0:00:49]} 16. Bxd5 {[%clk 0:02:42]}  Rc8 {[%clk 0:00:44]} 17. g4 {[%clk 0:02:36]}  hxg4 {[%clk 0:00:41]} 18. h5 {[%clk 0:02:37]}  Rh8 {[%clk 0:00:38]} 19. Qf4 {[%clk 0:01:16]}  e6 {[%clk 0:00:19]} 20. hxg6 {[%clk 0:00:56]}  Qf6 {[%clk 0:00:12]} 21. Qxd6 {[%clk 0:00:41]}  exd5 {[%clk 0:00:11]} 22. Qxd7 {[%clk 0:00:36]}  Rhd8 {[%clk 0:00:09]} 23. Rh7+ {[%clk 0:00:28]}  Kxg6 {[%clk 0:00:08]} 24. Qxg4+ {[%clk 0:00:27]}  Kxh7 {[%clk 0:00:07]} 25. Rh1+ {[%clk 0:00:27]}  Qh6+ {[%clk 0:00:06]} 26. Rxh6+ {[%clk 0:00:26]}  Kxh6 {[%clk 0:00:06]} 27. Qf4+ {[%clk 0:00:21]}  Kg7 {[%clk 0:00:05]} 28. e5 {[%clk 0:00:20]}  Rc6 {[%clk 0:00:00]} 29. Qg5+ {[%clk 0:00:20]} 1-0


[Site "https://www.chess.com"]

[Event "Titled Tuesday Blitz July 18 Early 2023"]
[White "Martinez Alcantara, Jose Eduardo"]
[Black "Carlsen, Magnus"]
[WhiteFideId "3805662"]
[BlackFideId "1503014"]
[WhiteElo "3037"]
[BlackElo "3274"]
[Result "1-0"]
[Round "10"]
[TimeControl "180+2"]
[Date "2023.07.18"]
[WhiteClock "0:00:03"]
[BlackClock "0:00:00"]
[Board "3"]

1. e4 {[%clk 0:03:00]}  a6 {[%clk 0:02:13]} 2. d4 {[%clk 0:02:59]}  c6 {[%clk 0:02:11]} 3. c4 {[%clk 0:03:00]}  d5 {[%clk 0:02:11]} 4. exd5 {[%clk 0:03:00]}  cxd5 {[%clk 0:02:12]} 5. Nc3 {[%clk 0:03:01]}  Nf6 {[%clk 0:02:12]} 6. Nf3 {[%clk 0:03:02]}  Nc6 {[%clk 0:02:12]} 7. cxd5 {[%clk 0:03:02]}  Nxd5 {[%clk 0:02:11]} 8. Bc4 {[%clk 0:03:03]}  Be6 {[%clk 0:02:11]} 9. Bb3 {[%clk 0:03:04]}  Nxc3 {[%clk 0:02:11]} 10. bxc3 {[%clk 0:03:05]}  Bxb3 {[%clk 0:02:11]} 11. axb3 {[%clk 0:03:06]}  e6 {[%clk 0:02:10]} 12. O-O {[%clk 0:03:06]}  Be7 {[%clk 0:02:11]} 13. Be3 {[%clk 0:03:02]}  O-O {[%clk 0:02:11]} 14. Qe2 {[%clk 0:02:55]}  Rc8 {[%clk 0:02:10]} 15. Rfd1 {[%clk 0:02:54]}  Bf6 {[%clk 0:01:58]} 16. c4 {[%clk 0:02:54]}  Qe7 {[%clk 0:01:56]} 17. Rac1 {[%clk 0:02:51]}  Rfd8 {[%clk 0:01:51]} 18. h3 {[%clk 0:02:34]}  h6 {[%clk 0:01:48]} 19. d5 {[%clk 0:02:33]}  exd5 {[%clk 0:01:48]} 20. cxd5 {[%clk 0:02:34]}  Nb8 {[%clk 0:01:43]} 21. Rxc8 {[%clk 0:02:25]}  Rxc8 {[%clk 0:01:44]} 22. Qd2 {[%clk 0:02:14]}  Qe4 {[%clk 0:01:22]} 23. d6 {[%clk 0:01:38]}  Nd7 {[%clk 0:01:20]} 24. Bd4 {[%clk 0:01:29]}  Bxd4 {[%clk 0:01:08]} 25. Nxd4 {[%clk 0:01:23]}  Qd5 {[%clk 0:01:08]} 26. Qf4 {[%clk 0:01:17]}  Rc6 {[%clk 0:00:51]} 27. Re1 {[%clk 0:00:53]}  Qxd6 {[%clk 0:00:49]} 28. Re8+ {[%clk 0:00:53]}  Nf8 {[%clk 0:00:49]} 29. Qe3 {[%clk 0:00:26]}  Rc5 {[%clk 0:00:38]} 30. g4 {[%clk 0:00:27]}  g6 {[%clk 0:00:31]} 31. Qxh6 {[%clk 0:00:25]}  Re5 {[%clk 0:00:17]} 32. Nf5 {[%clk 0:00:26]}  gxf5 {[%clk 0:00:04]} 33. Qxd6 {[%clk 0:00:22]}  Rxe8 {[%clk 0:00:04]} 34. gxf5 {[%clk 0:00:18]}  Nh7 {[%clk 0:00:04]} 35. Qd7 {[%clk 0:00:15]}  Re5 {[%clk 0:00:02]} 36. Qd8+ {[%clk 0:00:13]}  Kg7 {[%clk 0:00:01]} 37. Qd4 {[%clk 0:00:14]}  f6 {[%clk 0:00:01]} 38. Qd7+ {[%clk 0:00:13]}  Kh6 {[%clk 0:00:02]} 39. Qxb7 {[%clk 0:00:13]}  Rb5 {[%clk 0:00:03]} 40. Qf7 {[%clk 0:00:11]}  Rxf5 {[%clk 0:00:02]} 41. Qe6 {[%clk 0:00:11]}  Rb5 {[%clk 0:00:02]} 42. h4 {[%clk 0:00:12]}  a5 {[%clk 0:00:02]} 43. Qe3+ {[%clk 0:00:11]}  Kg7 {[%clk 0:00:02]} 44. Kh2 {[%clk 0:00:12]}  Rb4 {[%clk 0:00:02]} 45. Qa7+ {[%clk 0:00:11]}  Kh6 {[%clk 0:00:02]} 46. Qe3+ {[%clk 0:00:12]}  Kh5 {[%clk 0:00:02]} 47. Qc3 {[%clk 0:00:12]}  Rxh4+ {[%clk 0:00:01]} 48. Kg3 {[%clk 0:00:13]}  Rg4+ {[%clk 0:00:02]} 49. Kf3 {[%clk 0:00:13]}  Rg5 {[%clk 0:00:03]} 50. Ke2 {[%clk 0:00:13]}  Kg6 {[%clk 0:00:03]} 51. f4 {[%clk 0:00:13]}  Rf5 {[%clk 0:00:03]} 52. Qd3 {[%clk 0:00:12]}  Nf8 {[%clk 0:00:03]} 53. Qe4 {[%clk 0:00:12]}  Nh7 {[%clk 0:00:02]} 54. Qe8+ {[%clk 0:00:09]}  Kg7 {[%clk 0:00:02]} 55. Qd7+ {[%clk 0:00:10]}  Kg6 {[%clk 0:00:03]} 56. Kf3 {[%clk 0:00:09]}  Rh5 {[%clk 0:00:03]} 57. Qe8+ {[%clk 0:00:09]}  Kh6 {[%clk 0:00:03]} 58. Kg4 {[%clk 0:00:05]}  f5+ {[%clk 0:00:03]} 59. Kg3 {[%clk 0:00:04]}  Nf6 {[%clk 0:00:04]} 60. Qf7 {[%clk 0:00:03]}  Ne4+ {[%clk 0:00:04]} 61. Kg2 {[%clk 0:00:04]}  Rh4 {[%clk 0:00:00]} 62. Qe6+ {[%clk 0:00:03]} 1-0


[Site "https://www.chess.com"]

[Event "Titled Tuesday Blitz July 18 Early 2023"]
[White "Bortnyk, Olexandr"]
[Black "Galchenko, Matvey"]
[WhiteFideId "14120828"]
[BlackFideId "24175480"]
[WhiteElo "3029"]
[BlackElo "2879"]
[Result "0-1"]
[Round "10"]
[TimeControl "180+2"]
[Date "2023.07.18"]
[WhiteClock "0:00:00"]
[BlackClock "0:00:04"]
[Board "6"]

1. e4 {[%clk 0:03:00]}  e6 {[%clk 0:02:55]} 2. d4 {[%clk 0:02:55]}  d5 {[%clk 0:02:56]} 3. e5 {[%clk 0:02:56]}  c5 {[%clk 0:02:56]} 4. Nf3 {[%clk 0:02:56]}  cxd4 {[%clk 0:02:53]} 5. Bd3 {[%clk 0:02:57]}  Nc6 {[%clk 0:02:41]} 6. O-O {[%clk 0:02:55]}  Qc7 {[%clk 0:02:36]} 7. Bf4 {[%clk 0:02:48]}  Nge7 {[%clk 0:02:36]} 8. Re1 {[%clk 0:02:48]}  Ng6 {[%clk 0:02:36]} 9. Bg3 {[%clk 0:02:49]}  Bb4 {[%clk 0:02:36]} 10. Nbd2 {[%clk 0:02:49]}  a5 {[%clk 0:02:08]} 11. a3 {[%clk 0:02:45]}  Bc5 {[%clk 0:02:08]} 12. Nb3 {[%clk 0:02:44]}  Bb6 {[%clk 0:02:09]} 13. a4 {[%clk 0:02:45]}  Bd7 {[%clk 0:02:04]} 14. h4 {[%clk 0:02:30]}  Nge7 {[%clk 0:02:02]} 15. h5 {[%clk 0:02:27]}  h6 {[%clk 0:02:02]} 16. Qd2 {[%clk 0:02:24]}  Nb4 {[%clk 0:01:48]} 17. Nbxd4 {[%clk 0:02:12]}  Nxd3 {[%clk 0:01:48]} 18. cxd3 {[%clk 0:02:12]}  Bc5 {[%clk 0:01:46]} 19. Qf4 {[%clk 0:02:06]}  Qb6 {[%clk 0:01:45]} 20. Rec1 {[%clk 0:02:02]}  O-O {[%clk 0:01:34]} 21. Bh4 {[%clk 0:01:59]}  Nf5 {[%clk 0:01:13]} 22. Nxf5 {[%clk 0:01:53]}  exf5 {[%clk 0:01:14]} 23. d4 {[%clk 0:01:32]}  Bb4 {[%clk 0:01:14]} 24. Ne1 {[%clk 0:00:55]}  Rac8 {[%clk 0:01:08]} 25. Nc2 {[%clk 0:00:51]}  Rc4 {[%clk 0:00:56]} 26. b3 {[%clk 0:00:49]}  Rc3 {[%clk 0:00:52]} 27. Ne3 {[%clk 0:00:48]}  Be6 {[%clk 0:00:37]} 28. Bf6 {[%clk 0:00:32]}  Rfc8 {[%clk 0:00:07]} 29. Rxc3 {[%clk 0:00:27]}  Rxc3 {[%clk 0:00:08]} 30. Qg3 {[%clk 0:00:14]}  Bf8 {[%clk 0:00:07]} 31. Rd1 {[%clk 0:00:10]}  Rxb3 {[%clk 0:00:07]} 32. Bh4 {[%clk 0:00:07]}  Rb4 {[%clk 0:00:06]} 33. Qf4 {[%clk 0:00:04]}  Rxa4 {[%clk 0:00:07]} 34. Bg3 {[%clk 0:00:02]}  Rb4 {[%clk 0:00:07]} 35. Nxf5 {[%clk 0:00:02]}  Bxf5 {[%clk 0:00:07]} 36. Qxf5 {[%clk 0:00:03]}  Rxd4 {[%clk 0:00:08]} 37. Rxd4 {[%clk 0:00:03]}  Qxd4 {[%clk 0:00:09]} 38. e6 {[%clk 0:00:04]}  Qe4 {[%clk 0:00:07]} 39. Qxf7+ {[%clk 0:00:04]}  Kh7 {[%clk 0:00:07]} 40. Qxf8 {[%clk 0:00:04]}  Qxe6 {[%clk 0:00:07]} 41. Qc5 {[%clk 0:00:02]}  b6 {[%clk 0:00:06]} 42. Qc2+ {[%clk 0:00:02]}  Kg8 {[%clk 0:00:06]} 43. Qc3 {[%clk 0:00:01]}  Qe8 {[%clk 0:00:04]} 44. Qd4 {[%clk 0:00:00]}  Qxh5 {[%clk 0:00:04]} 0-1


[Site "https://www.chess.com"]